[Event "Early-Titled-Tuesday-Blitz-November-28-2023"]
[Site "Chess.com"]
[Date "2023.11.28"]
[Round "2"]
[White "brunoo2003"]
[Black "Zainullina_Nataliya"]
[Result "1-0"]
[WhiteElo "2454"]
[BlackElo "2137"]
[TimeControl "180+1"]
[EndTime "8:17:49 PST"]
[Termination "brunoo2003 won by resignation"]

1. b3 {[%clk 0:03:00.9]} 1... d5 {[%clk 0:02:56.8]} 2. Bb2 {[%clk 0:03:01.8]}
2... Bf5 {[%clk 0:02:55.1]} 3. Nf3 {[%clk 0:03:01.3]} 3... e6 {[%clk 0:02:54.1]}
4. e3 {[%clk 0:03:01.1]} 4... Nf6 {[%clk 0:02:53.5]} 5. Bd3 {[%clk 0:03:00.6]}
5... Bxd3 {[%clk 0:02:52.8]} 6. cxd3 {[%clk 0:03:01.5]} 6... Be7 {[%clk
0:02:52.8]} 7. O-O {[%clk 0:03:02]} 7... Nbd7 {[%clk 0:02:51.9]} 8. d4 {[%clk
0:03:00.2]} 8... O-O {[%clk 0:02:51.6]} 9. Nc3 {[%clk 0:02:59.5]} 9... c5 {[%clk
0:02:50.8]} 10. dxc5 {[%clk 0:02:59.4]} 10... Nxc5 {[%clk 0:02:50.3]} 11. Qe2
{[%clk 0:02:58.3]} 11... a6 {[%clk 0:02:48.5]} 12. Rac1 {[%clk 0:02:57.1]} 12...
Rc8 {[%clk 0:02:47.4]} 13. d3 {[%clk 0:02:55.3]} 13... b5 {[%clk 0:02:36.8]} 14.
Rc2 {[%clk 0:02:44.4]} 14... Rc7 {[%clk 0:02:29.2]} 15. Rfc1 {[%clk 0:02:43.2]}
15... Qd7 {[%clk 0:02:13.4]} 16. Ne5 {[%clk 0:02:35.3]} 16... Qd6 {[%clk
0:02:11.5]} 17. b4 {[%clk 0:02:25.4]} 17... Qxe5 {[%clk 0:01:40]} 18. Nxb5
{[%clk 0:02:16.3]} 18... Qf5 {[%clk 0:01:18.8]} 19. Nxc7 {[%clk 0:02:08]} 19...
Nxd3 {[%clk 0:01:13.2]} 20. Rd1 {[%clk 0:01:56.5]} 20... Nxb4 {[%clk 0:01:06.4]}
21. Rcd2 {[%clk 0:01:44.8]} 21... Ne4 {[%clk 0:01:02.4]} 22. Rd4 {[%clk
0:01:31.1]} 22... Nc6 {[%clk 0:00:55.2]} 23. Ra4 {[%clk 0:01:26.5]} 23... a5
{[%clk 0:00:48.2]} 24. Nb5 {[%clk 0:01:23.9]} 24... h6 {[%clk 0:00:43.5]} 25.
Nd4 {[%clk 0:01:21.7]} 25... Nxd4 {[%clk 0:00:42.8]} 26. Bxd4 {[%clk 0:01:22.6]}
26... Bb4 {[%clk 0:00:42.4]} 27. a3 {[%clk 0:01:17.6]} 27... Bd6 {[%clk
0:00:40.2]} 28. f3 {[%clk 0:00:46.5]} 28... Ng5 {[%clk 0:00:37.6]} 29. Rxa5
{[%clk 0:00:43.5]} 29... Rc8 {[%clk 0:00:33.9]} 30. Qd3 {[%clk 0:00:39.1]} 30...
Qxd3 {[%clk 0:00:24.5]} 31. Rxd3 {[%clk 0:00:40]} 31... Rc1+ {[%clk 0:00:23.2]}
32. Kf2 {[%clk 0:00:40.5]} 32... Rc2+ {[%clk 0:00:21.4]} 33. Kf1 {[%clk
0:00:38]} 33... Rc1+ {[%clk 0:00:20.6]} 34. Ke2 {[%clk 0:00:37.7]} 34... Rc2+
{[%clk 0:00:20.6]} 35. Rd2 {[%clk 0:00:37.9]} 35... Rc1 {[%clk 0:00:20.5]} 36.
h4 {[%clk 0:00:35.6]} 36... Bg3 {[%clk 0:00:14.5]} 37. hxg5 {[%clk 0:00:29.9]}
37... e5 {[%clk 0:00:13.7]} 38. Bb2 {[%clk 0:00:25.7]} 38... Rb1 {[%clk
0:00:13.2]} 39. Raxd5 {[%clk 0:00:22.1]} 1-0

[Event "Early-Titled-Tuesday-Blitz-November-28-2023"]
[Site "Chess.com"]
[Date "2023.11.28"]
[Round "2"]
[White "tacticthunder"]
[Black "CristianS27"]
[Result "0-1"]
[WhiteElo "2822"]
[BlackElo "2582"]
[TimeControl "180+1"]
[EndTime "8:17:50 PST"]
[Termination "CristianS27 won by checkmate"]

1. e4 {[%clk 0:02:57.3]} 1... e5 {[%clk 0:03:00.6]} 2. Nf3 {[%clk 0:02:55.7]}
2... Nc6 {[%clk 0:03:01.2]} 3. Bb5 {[%clk 0:02:54.8]} 3... a6 {[%clk 0:03:01.8]}
4. Ba4 {[%clk 0:02:55.1]} 4... Nf6 {[%clk 0:03:02.2]} 5. Bxc6 {[%clk 0:02:54.2]}
5... dxc6 {[%clk 0:03:01.8]} 6. d3 {[%clk 0:02:54.5]} 6... Bc5 {[%clk
0:02:49.2]} 7. O-O {[%clk 0:02:53.6]} 7... Qe7 {[%clk 0:02:43.1]} 8. a3 {[%clk
0:02:51.3]} 8... a5 {[%clk 0:02:41.9]} 9. b3 {[%clk 0:02:50.4]} 9... O-O {[%clk
0:02:41]} 10. Bb2 {[%clk 0:02:50.2]} 10... Nd7 {[%clk 0:02:39.8]} 11. Nbd2
{[%clk 0:02:50]} 11... f6 {[%clk 0:02:35.7]} 12. Re1 {[%clk 0:02:44.3]} 12...
Re8 {[%clk 0:02:35]} 13. c3 {[%clk 0:02:27]} 13... Nf8 {[%clk 0:02:31.2]} 14. d4
{[%clk 0:02:26.1]} 14... exd4 {[%clk 0:02:31.1]} 15. cxd4 {[%clk 0:02:26]} 15...
Bb6 {[%clk 0:02:31]} 16. Nc4 {[%clk 0:02:25.7]} 16... Bg4 {[%clk 0:02:21.1]} 17.
h3 {[%clk 0:02:25.5]} 17... Bh5 {[%clk 0:02:21.1]} 18. g4 {[%clk 0:01:56.6]}
18... Bf7 {[%clk 0:02:17.3]} 19. Qc2 {[%clk 0:01:57.1]} 19... Rad8 {[%clk
0:02:12.6]} 20. Rad1 {[%clk 0:01:55.5]} 20... Ng6 {[%clk 0:02:12.2]} 21. Bc1
{[%clk 0:01:50.8]} 21... Bxc4 {[%clk 0:01:59.6]} 22. bxc4 {[%clk 0:01:47.1]}
22... c5 {[%clk 0:01:37]} 23. d5 {[%clk 0:01:45.1]} 23... c6 {[%clk 0:01:28.1]}
24. Qb3 {[%clk 0:01:21.7]} 24... Bc7 {[%clk 0:01:27.2]} 25. Kh1 {[%clk
0:01:15.8]} 25... Bf4 {[%clk 0:01:23.9]} 26. Bb2 {[%clk 0:01:08.8]} 26... Ne5
{[%clk 0:01:10.8]} 27. Nh4 {[%clk 0:01:05.2]} 27... g6 {[%clk 0:00:51.1]} 28.
Ng2 {[%clk 0:01:03.6]} 28... g5 {[%clk 0:00:33.6]} 29. Nxf4 {[%clk 0:00:50]}
29... gxf4 {[%clk 0:00:34.5]} 30. Bxe5 {[%clk 0:00:50.2]} 30... fxe5 {[%clk
0:00:32.9]} 31. Rb1 {[%clk 0:00:45.5]} 31... Qh4 {[%clk 0:00:29.9]} 32. Qf3
{[%clk 0:00:39.8]} 32... Rd7 {[%clk 0:00:23.8]} 33. Rb6 {[%clk 0:00:38.7]} 33...
cxd5 {[%clk 0:00:21.3]} 34. exd5 {[%clk 0:00:31.9]} 34... e4 {[%clk 0:00:22.2]}
35. Rxe4 {[%clk 0:00:19.3]} 35... Rxe4 {[%clk 0:00:21.7]} 36. Qxe4 {[%clk
0:00:20.2]} 36... Qxh3+ {[%clk 0:00:22]} 37. Kg1 {[%clk 0:00:20.9]} 37... Qxg4+
{[%clk 0:00:22.4]} 38. Qg2 {[%clk 0:00:21.7]} 38... Rg7 {[%clk 0:00:11.6]} 39.
Qxg4 {[%clk 0:00:20]} 39... Rxg4+ {[%clk 0:00:12.5]} 40. Kf1 {[%clk 0:00:17.1]}
40... f3 {[%clk 0:00:13.4]} 41. Rxb7 {[%clk 0:00:15.3]} 41... Rxc4 {[%clk
0:00:13.7]} 42. Rb5 {[%clk 0:00:16]} 42... Rc1# {[%clk 0:00:13.7]} 0-1

[Event "Early-Titled-Tuesday-Blitz-November-28-2023"]
[Site "Chess.com"]
[Date "2023.11.28"]
[Round "2"]
[White "kunaevchess"]
[Black "Politov_Pavel"]
[Result "0-1"]
[WhiteElo "2380"]
[BlackElo "2132"]
[TimeControl "180+1"]
[EndTime "8:17:50 PST"]
[Termination "Politov_Pavel won by resignation"]

1. e4 {[%clk 0:03:00.9]} 1... c5 {[%clk 0:02:54.8]} 2. d4 {[%clk 0:02:53.8]}
2... cxd4 {[%clk 0:02:54]} 3. Qxd4 {[%clk 0:02:52.3]} 3... Nc6 {[%clk
0:02:52.8]} 4. Qd3 {[%clk 0:02:51.2]} 4... Nf6 {[%clk 0:02:46.9]} 5. Nc3 {[%clk
0:02:49.1]} 5... e6 {[%clk 0:02:42.9]} 6. Qg3 {[%clk 0:02:24.6]} 6... a6 {[%clk
0:02:15.2]} 7. Bf4 {[%clk 0:02:19.9]} 7... Nh5 {[%clk 0:02:09.2]} 8. Qg4 {[%clk
0:02:17.8]} 8... Nxf4 {[%clk 0:02:06.3]} 9. Qxf4 {[%clk 0:02:15.3]} 9... Be7
{[%clk 0:02:03.3]} 10. Qg3 {[%clk 0:02:13.6]} 10... O-O {[%clk 0:02:01]} 11. Nf3
{[%clk 0:02:11]} 11... b5 {[%clk 0:01:59.8]} 12. Bd3 {[%clk 0:02:06.5]} 12...
Bb7 {[%clk 0:01:52]} 13. O-O {[%clk 0:02:02.3]} 13... Nb4 {[%clk 0:01:37.1]} 14.
Rad1 {[%clk 0:01:42.6]} 14... Nxd3 {[%clk 0:01:18.9]} 15. Rxd3 {[%clk
0:01:43.5]} 15... b4 {[%clk 0:01:16.1]} 16. Ne2 {[%clk 0:01:41.3]} 16... Bxe4
{[%clk 0:01:15]} 17. Rd4 {[%clk 0:01:37.4]} 17... Bxc2 {[%clk 0:00:49.5]} 18.
Ne5 {[%clk 0:01:28]} 18... d5 {[%clk 0:00:32]} 19. Nc6 {[%clk 0:01:24.6]} 19...
Qd6 {[%clk 0:00:17.2]} 20. Nxe7+ {[%clk 0:01:18]} 20... Qxe7 {[%clk 0:00:16.9]}
21. Qe5 {[%clk 0:01:13.8]} 21... Rfd8 {[%clk 0:00:08.6]} 22. Nf4 {[%clk
0:01:13.1]} 22... Qf6 {[%clk 0:00:04.8]} 23. Qxf6 {[%clk 0:01:07.2]} 23... gxf6
{[%clk 0:00:05.7]} 24. Nh5 {[%clk 0:01:07.3]} 24... Bg6 {[%clk 0:00:03.9]} 25.
Nxf6+ {[%clk 0:01:06.9]} 25... Kg7 {[%clk 0:00:04.4]} 26. Ng4 {[%clk 0:01:07.4]}
26... Rdb8 {[%clk 0:00:04.1]} 27. Rc1 {[%clk 0:01:05.2]} 27... b3 {[%clk
0:00:03.1]} 28. axb3 {[%clk 0:00:51.8]} 28... Rxb3 {[%clk 0:00:02.4]} 29. Rd2
{[%clk 0:00:52.3]} 29... Rab8 {[%clk 0:00:01.2]} 30. h3 {[%clk 0:00:48.8]} 30...
Rxb2 {[%clk 0:00:01.6]} 31. Rd4 {[%clk 0:00:44.4]} 31... Rb1 {[%clk 0:00:01.8]}
32. Rxb1 {[%clk 0:00:42.8]} 32... Rxb1+ {[%clk 0:00:01.3]} 33. Kh2 {[%clk
0:00:43.2]} 33... a5 {[%clk 0:00:01.9]} 34. Ra4 {[%clk 0:00:43.2]} 34... Rb5
{[%clk 0:00:02.5]} 35. Ne3 {[%clk 0:00:43]} 35... Kf8 {[%clk 0:00:02.7]} 36. Nd1
{[%clk 0:00:42.1]} 36... Bc2 {[%clk 0:00:02.2]} 37. Nc3 {[%clk 0:00:42]} 37...
Bxa4 {[%clk 0:00:01.9]} 38. Nxa4 {[%clk 0:00:41.7]} 38... Rb4 {[%clk 0:00:02.3]}
39. Nc5 {[%clk 0:00:41.3]} 39... a4 {[%clk 0:00:02.7]} 40. Nd3 {[%clk
0:00:40.6]} 40... Rb3 {[%clk 0:00:02.7]} 41. Nb4 {[%clk 0:00:41.5]} 41... Rxb4
{[%clk 0:00:02.8]} 42. Kg3 {[%clk 0:00:41.6]} 42... a3 {[%clk 0:00:03.4]} 0-1

[Event "Early-Titled-Tuesday-Blitz-November-28-2023"]
[Site "Chess.com"]
[Date "2023.11.28"]
[Round "2"]
[White "HalfIsCrayfish"]
[Black "AjedrezenMadrid"]
[Result "1-0"]
[WhiteElo "2634"]
[BlackElo "2374"]
[TimeControl "180+1"]
[EndTime "8:17:51 PST"]
[Termination "HalfIsCrayfish won by checkmate"]

1. d4 {[%clk 0:03:00.9]} 1... Nf6 {[%clk 0:02:59.2]} 2. c4 {[%clk 0:02:59.9]}
2... e6 {[%clk 0:02:59.2]} 3. Nf3 {[%clk 0:02:59.4]} 3... b6 {[%clk 0:02:58.3]}
4. g3 {[%clk 0:02:57.3]} 4... Bb7 {[%clk 0:02:56.4]} 5. Bg2 {[%clk 0:02:57.3]}
5... Bb4+ {[%clk 0:02:57.1]} 6. Bd2 {[%clk 0:02:56.8]} 6... Bxd2+ {[%clk
0:02:56.7]} 7. Qxd2 {[%clk 0:02:57.5]} 7... O-O {[%clk 0:02:56.3]} 8. O-O {[%clk
0:02:57.6]} 8... d6 {[%clk 0:02:55.9]} 9. d5 {[%clk 0:02:45.2]} 9... exd5 {[%clk
0:02:45.4]} 10. Nh4 {[%clk 0:02:43.6]} 10... Ne4 {[%clk 0:02:44.7]} 11. Qc2
{[%clk 0:02:39]} 11... Re8 {[%clk 0:02:42.6]} 12. Nd2 {[%clk 0:02:28.3]} 12...
Nd7 {[%clk 0:02:38.3]} 13. cxd5 {[%clk 0:02:17.8]} 13... Nxd2 {[%clk 0:02:33.2]}
14. Qxd2 {[%clk 0:02:16.6]} 14... a5 {[%clk 0:02:32.2]} 15. Rac1 {[%clk
0:02:13.2]} 15... Nc5 {[%clk 0:02:29.9]} 16. Rfe1 {[%clk 0:01:52.9]} 16... Qf6
{[%clk 0:02:29.5]} 17. e4 {[%clk 0:01:41.6]} 17... g6 {[%clk 0:02:21.5]} 18. h3
{[%clk 0:01:36.7]} 18... Re7 {[%clk 0:02:21.5]} 19. Kh2 {[%clk 0:01:35.9]} 19...
Rae8 {[%clk 0:02:21]} 20. f3 {[%clk 0:01:22.3]} 20... Ba6 {[%clk 0:02:05]} 21.
Rc3 {[%clk 0:01:20.2]} 21... b5 {[%clk 0:01:47.6]} 22. Rce3 {[%clk 0:00:45.9]}
22... b4 {[%clk 0:01:21.9]} 23. f4 {[%clk 0:00:46.2]} 23... Qg7 {[%clk
0:01:10.4]} 24. Nf3 {[%clk 0:00:45.8]} 24... h6 {[%clk 0:01:09.2]} 25. e5 {[%clk
0:00:42]} 25... g5 {[%clk 0:01:06.7]} 26. exd6 {[%clk 0:00:23.1]} 26... Rxe3
{[%clk 0:01:06.5]} 27. Rxe3 {[%clk 0:00:24]} 27... Rxe3 {[%clk 0:01:06.6]} 28.
Qxe3 {[%clk 0:00:24.3]} 28... cxd6 {[%clk 0:01:06.3]} 29. fxg5 {[%clk
0:00:23.9]} 29... hxg5 {[%clk 0:00:57.8]} 30. Nxg5 {[%clk 0:00:21.4]} 30... Bb5
{[%clk 0:00:52.8]} 31. h4 {[%clk 0:00:20.1]} 31... Nd3 {[%clk 0:00:42]} 32. Qe7
{[%clk 0:00:20.1]} 32... Qf8 {[%clk 0:00:35.2]} 33. Qf6 {[%clk 0:00:16.9]} 33...
Ne5 {[%clk 0:00:32.5]} 34. Qf5 {[%clk 0:00:08.9]} 34... Bd3 {[%clk 0:00:31.2]}
35. Qf4 {[%clk 0:00:06.8]} 35... f6 {[%clk 0:00:29.5]} 36. Ne6 {[%clk
0:00:06.6]} 36... Qf7 {[%clk 0:00:27.6]} 37. Be4 {[%clk 0:00:06.8]} 37... Bxe4
{[%clk 0:00:26.4]} 38. Qxe4 {[%clk 0:00:07.7]} 38... f5 {[%clk 0:00:26.9]} 39.
Qf4 {[%clk 0:00:07.7]} 39... Ng4+ {[%clk 0:00:27.2]} 40. Kh3 {[%clk 0:00:08.4]}
40... Qa7 {[%clk 0:00:27.9]} 41. Qg5+ {[%clk 0:00:08.6]} 41... Kf7 {[%clk
0:00:26.9]} 42. Qg7+ {[%clk 0:00:09]} 42... Ke8 {[%clk 0:00:27]} 43. Qf8+ {[%clk
0:00:08.7]} 43... Kd7 {[%clk 0:00:27]} 44. Qd8# {[%clk 0:00:09.3]} 1-0

[Event "Early-Titled-Tuesday-Blitz-November-28-2023"]
[Site "Chess.com"]
[Date "2023.11.28"]
[Round "2"]
[White "vovachesss"]
[Black "Viacheslav92"]
[Result "1-0"]
[WhiteElo "2866"]
[BlackElo "2564"]
[TimeControl "180+1"]
[EndTime "8:17:53 PST"]
[Termination "vovachesss won by resignation"]

1. e4 {[%clk 0:03:00.9]} 1... e5 {[%clk 0:02:59.6]} 2. Nf3 {[%clk 0:03:00.8]}
2... Nc6 {[%clk 0:03:00.3]} 3. Nc3 {[%clk 0:03:01.5]} 3... Nf6 {[%clk 0:03:00]}
4. d4 {[%clk 0:03:02.2]} 4... exd4 {[%clk 0:03:00.9]} 5. Nxd4 {[%clk 0:03:02.5]}
5... Bc5 {[%clk 0:03:00.7]} 6. Nxc6 {[%clk 0:03:03.2]} 6... bxc6 {[%clk
0:03:00.5]} 7. Bd3 {[%clk 0:03:02.2]} 7... O-O {[%clk 0:02:59.1]} 8. O-O {[%clk
0:03:02.2]} 8... Re8 {[%clk 0:02:58.9]} 9. h3 {[%clk 0:03:01.1]} 9... d5 {[%clk
0:02:57.3]} 10. exd5 {[%clk 0:03:01.2]} 10... cxd5 {[%clk 0:02:58.2]} 11. Qf3
{[%clk 0:02:57.4]} 11... c6 {[%clk 0:02:56.1]} 12. Bg5 {[%clk 0:02:53.8]} 12...
h6 {[%clk 0:02:55.9]} 13. Bh4 {[%clk 0:02:51.9]} 13... Rb8 {[%clk 0:02:54.3]}
14. Na4 {[%clk 0:02:13.4]} 14... Bd6 {[%clk 0:02:49.7]} 15. b3 {[%clk
0:02:10.5]} 15... Rb4 {[%clk 0:02:48.4]} 16. c4 {[%clk 0:02:07.6]} 16... Be6
{[%clk 0:02:47.3]} 17. Bxf6 {[%clk 0:01:23]} 17... Qxf6 {[%clk 0:02:41]} 18.
Qxf6 {[%clk 0:01:19.8]} 18... gxf6 {[%clk 0:02:41.9]} 19. cxd5 {[%clk
0:01:16.7]} 19... cxd5 {[%clk 0:02:38.9]} 20. Rac1 {[%clk 0:01:14.9]} 20... Rc8
{[%clk 0:02:31.1]} 21. Rxc8+ {[%clk 0:01:12.4]} 21... Bxc8 {[%clk 0:02:32]} 22.
Rc1 {[%clk 0:01:12.8]} 22... Be6 {[%clk 0:02:29.9]} 23. Kf1 {[%clk 0:01:07.8]}
23... Kg7 {[%clk 0:02:28.6]} 24. Rc6 {[%clk 0:01:06.6]} 24... Be5 {[%clk
0:02:25.2]} 25. Nc5 {[%clk 0:01:00.9]} 25... Rb6 {[%clk 0:02:14.5]} 26. Rxb6
{[%clk 0:00:44.5]} 26... axb6 {[%clk 0:02:15.4]} 27. Na4 {[%clk 0:00:43]} 27...
Bd4 {[%clk 0:02:12.8]} 28. Bb5 {[%clk 0:00:28.1]} 28... Bf5 {[%clk 0:02:08.4]}
29. Bc6 {[%clk 0:00:25.6]} 29... Bb1 {[%clk 0:01:51.4]} 30. Ke2 {[%clk
0:00:25.7]} 30... Bxa2 {[%clk 0:01:45.5]} 31. Kd3 {[%clk 0:00:22.6]} 31... Bxf2
{[%clk 0:01:37.9]} 32. Kc2 {[%clk 0:00:18.6]} 32... Bd4 {[%clk 0:01:35]} 33.
Bxd5 {[%clk 0:00:15.8]} 33... f5 {[%clk 0:01:08]} 34. Nb2 {[%clk 0:00:15.2]}
34... Kf6 {[%clk 0:00:44.7]} 35. Nd3 {[%clk 0:00:13.7]} 35... Bc5 {[%clk
0:00:20.5]} 36. Nxc5 {[%clk 0:00:08.2]} 36... bxc5 {[%clk 0:00:21.4]} 37. Kb2
{[%clk 0:00:08.9]} 37... Ke5 {[%clk 0:00:19.3]} 38. Bxf7 {[%clk 0:00:07.2]}
38... Bxb3 {[%clk 0:00:20]} 39. Kxb3 {[%clk 0:00:07.8]} 39... Kf4 {[%clk
0:00:20.9]} 40. Kc4 {[%clk 0:00:07.9]} 40... Kg3 {[%clk 0:00:21.5]} 41. Bd5
{[%clk 0:00:08.5]} 41... f4 {[%clk 0:00:22.4]} 42. Bf3 {[%clk 0:00:08.5]} 42...
h5 {[%clk 0:00:22.1]} 43. Kxc5 {[%clk 0:00:09.4]} 43... h4 {[%clk 0:00:23]} 44.
Kd5 {[%clk 0:00:09.9]} 1-0

[Event "Early-Titled-Tuesday-Blitz-November-28-2023"]
[Site "Chess.com"]
[Date "2023.11.28"]
[Round "2"]
[White "SHIVACalypso"]
[Black "DonCiao"]
[Result "1-0"]
[WhiteElo "2440"]
[BlackElo "2115"]
[TimeControl "180+1"]
[EndTime "8:17:54 PST"]
[Termination "SHIVACalypso won by resignation"]

1. e4 {[%clk 0:03:00.9]} 1... c5 {[%clk 0:02:59]} 2. Nc3 {[%clk 0:02:58.2]} 2...
Nc6 {[%clk 0:02:58.8]} 3. g3 {[%clk 0:02:58.6]} 3... g6 {[%clk 0:02:58.5]} 4.
Bg2 {[%clk 0:02:59.1]} 4... Bg7 {[%clk 0:02:58.9]} 5. f4 {[%clk 0:02:59.7]} 5...
d6 {[%clk 0:02:56.7]} 6. Nf3 {[%clk 0:03:00.3]} 6... e6 {[%clk 0:02:54.9]} 7.
O-O {[%clk 0:03:00.9]} 7... Nge7 {[%clk 0:02:54.7]} 8. d3 {[%clk 0:03:01]} 8...
O-O {[%clk 0:02:51.7]} 9. Be3 {[%clk 0:02:59.6]} 9... b6 {[%clk 0:02:50.3]} 10.
d4 {[%clk 0:02:57.9]} 10... Ba6 {[%clk 0:02:48.2]} 11. Re1 {[%clk 0:02:57.2]}
11... d5 {[%clk 0:02:32.8]} 12. exd5 {[%clk 0:02:28.1]} 12... exd5 {[%clk
0:02:30.8]} 13. Qd2 {[%clk 0:02:28.6]} 13... Nf5 {[%clk 0:02:30.2]} 14. Bf2
{[%clk 0:02:25.8]} 14... cxd4 {[%clk 0:02:28.1]} 15. Ne2 {[%clk 0:02:23.5]}
15... Ne3 {[%clk 0:02:14.8]} 16. Nexd4 {[%clk 0:02:13.4]} 16... Nxd4 {[%clk
0:01:58.5]} 17. Nxd4 {[%clk 0:02:14.3]} 17... Nxg2 {[%clk 0:01:57.5]} 18. Kxg2
{[%clk 0:02:14.7]} 18... Qc7 {[%clk 0:01:53.1]} 19. c3 {[%clk 0:02:13.3]} 19...
Rfe8 {[%clk 0:01:49.9]} 20. Rxe8+ {[%clk 0:02:11.8]} 20... Rxe8 {[%clk
0:01:49.2]} 21. Re1 {[%clk 0:02:12.7]} 21... Rd8 {[%clk 0:01:45]} 22. f5 {[%clk
0:02:08]} 22... Bc8 {[%clk 0:01:36.8]} 23. Qg5 {[%clk 0:02:06.9]} 23... h6
{[%clk 0:01:35]} 24. Qe3 {[%clk 0:02:01.6]} 24... gxf5 {[%clk 0:01:32.4]} 25.
Qf3 {[%clk 0:02:01.3]} 25... Qd7 {[%clk 0:01:23.4]} 26. Be3 {[%clk 0:01:55.5]}
26... Re8 {[%clk 0:01:19.7]} 27. Rf1 {[%clk 0:01:54.9]} 27... Qa4 {[%clk
0:01:12.7]} 28. Nxf5 {[%clk 0:01:47.3]} 28... Bxf5 {[%clk 0:01:11.5]} 29. Qxf5
{[%clk 0:01:47.9]} 29... Qe4+ {[%clk 0:01:11.7]} 30. Qxe4 {[%clk 0:01:47.6]}
30... Rxe4 {[%clk 0:01:07.7]} 31. Kf3 {[%clk 0:01:46]} 31... h5 {[%clk
0:01:03.2]} 32. Rd1 {[%clk 0:01:45.1]} 32... Re5 {[%clk 0:01:01.5]} 33. Bf4
{[%clk 0:01:45.1]} 33... Rf5 {[%clk 0:01:00.9]} 34. h3 {[%clk 0:01:42.7]} 34...
Bh6 {[%clk 0:00:52.9]} 35. Ke3 {[%clk 0:01:41.8]} 35... Bxf4+ {[%clk 0:00:52.5]}
36. gxf4 {[%clk 0:01:42.7]} 36... Kf8 {[%clk 0:00:51.6]} 37. Rd4 {[%clk
0:01:37.6]} 37... Ke7 {[%clk 0:00:51.2]} 38. Ra4 {[%clk 0:01:37.4]} 38... a5
{[%clk 0:00:50.7]} 39. b4 {[%clk 0:01:37.8]} 39... Kd6 {[%clk 0:00:42.3]} 40.
bxa5 {[%clk 0:01:36.8]} 40... bxa5 {[%clk 0:00:42.6]} 41. Kf3 {[%clk 0:01:33.3]}
41... d4 {[%clk 0:00:37.1]} 42. Rxd4+ {[%clk 0:01:31.8]} 42... Kc5 {[%clk
0:00:36.2]} 43. Ke4 {[%clk 0:01:29.4]} 43... Rf6 {[%clk 0:00:35.5]} 44. Rd5+
{[%clk 0:01:29.8]} 44... Kc4 {[%clk 0:00:34]} 45. Rxa5 {[%clk 0:01:30.4]} 45...
Kxc3 {[%clk 0:00:34.4]} 46. Rxh5 {[%clk 0:01:30.2]} 46... Kb4 {[%clk 0:00:30.8]}
47. Rf5 {[%clk 0:01:29.8]} 47... Re6+ {[%clk 0:00:30.4]} 48. Kf3 {[%clk
0:01:29.3]} 48... Rh6 {[%clk 0:00:29.9]} 49. Kg4 {[%clk 0:01:28.9]} 49... Rg6+
{[%clk 0:00:29.2]} 50. Kh5 {[%clk 0:01:26.4]} 50... Rg3 {[%clk 0:00:27.3]} 51.
h4 {[%clk 0:01:26.2]} 51... Rh3 {[%clk 0:00:23.7]} 52. Rxf7 {[%clk 0:01:25.8]}
52... Ka3 {[%clk 0:00:21.1]} 53. f5 {[%clk 0:01:17.7]} 53... Kxa2 {[%clk
0:00:20.7]} 54. f6 {[%clk 0:01:18.2]} 54... Kb3 {[%clk 0:00:20.4]} 55. Rc7
{[%clk 0:01:18.8]} 55... Rf3 {[%clk 0:00:18.4]} 56. f7 {[%clk 0:01:19.3]} 56...
Kb4 {[%clk 0:00:18.3]} 57. Kg6 {[%clk 0:01:18.3]} 57... Kb5 {[%clk 0:00:17.8]}
58. Kg7 {[%clk 0:01:17.4]} 58... Rg3+ {[%clk 0:00:17.7]} 59. Kh7 {[%clk
0:01:17.5]} 59... Rf3 {[%clk 0:00:17.3]} 60. Kg8 {[%clk 0:01:16.1]} 60... Rg3+
{[%clk 0:00:15.6]} 61. Kf8 {[%clk 0:01:16]} 61... Kb6 {[%clk 0:00:15]} 62. Re7
{[%clk 0:01:15.8]} 62... Kc6 {[%clk 0:00:15]} 63. Ke8 {[%clk 0:01:16.4]} 1-0